fUSD/lending_fUSD_20241207
["ID","MTS","AMOUNT","RATE_DAILY","PERIOD"]
[344514472,1733534579420,-500.0,8.219e-05,2]
[344514473,1733534579445,-1248.89,8.219e-05,2]
[344514474,1733534579467,-500.0,8.219e-05,2]
[344514475,1733534579494,-500.0,8.219e-05,2]
[344514476,1733534579517,-5257.03,8.219e-05,2]
[344514477,1733534579543,-320.10068288,8.219e-05,2]
[344514478,1733534579566,-500.0,8.219e-05,2]
[344514479,1733534579589,-1983.53,8.219e-05,2]
[344514480,1733534579616,-2485.82,8.219e-05,2]
[344514481,1733534579639,-500.0,8.219e-05,2]
[344514482,1733534579662,-500.0,8.219e-05,2]
[344514483,1733534579687,-7158.83,8.219e-05,2]
[344514484,1733534579710,-500.0,8.219e-05,2]
[344514485,1733534579736,-1665.73,8.219e-05,2]
[344514486,1733534579758,-500.0,8.219e-05,2]
[344514487,1733534579783,-1823.77,8.219e-05,2]
[344514488,1733534579806,-1783.64,8.219e-05,2]
[344514489,1733534579829,-500.0,8.219e-05,2]
[344514490,1733534579852,-500.0,8.219e-05,2]
[344514491,1733534579877,-500.0,8.219e-05,2]
[344514492,1733534579900,-500.0,8.219e-05,2]
[344514493,1733534579923,-506.65454724,8.219e-05,2]
[344514494,1733534579946,-500.0,8.219e-05,2]
[344514495,1733534579969,-665.68,8.219e-05,2]
[344514496,1733534579995,-1392.61,8.219e-05,2]
[344514497,1733534580021,-2537.64,8.219e-05,2]
[344514498,1733534580047,-500.0,8.219e-05,2]
[344514499,1733534580071,-731.26,8.219e-05,2]
[344514500,1733534580095,-500.0,8.219e-05,2]
[344514501,1733534580120,-1464.06,8.219e-05,2]
[344514502,1733534580144,-1525.33,8.219e-05,2]
[344514503,1733534580168,-500.0,8.219e-05,2]
[344514504,1733534580193,-500.78613228,8.219e-05,2]
[344514505,1733534580218,-500.0,8.219e-05,2]
[344514506,1733534580243,-500.0,8.219e-05,2]
[344514507,1733534580266,-500.0,8.219e-05,2]
[344514508,1733534580290,-610.96,8.219e-05,2]
[344514509,1733534580314,-500.0,8.219e-05,2]
[344514510,1733534580344,-1037.86,8.219e-05,2]
[344514511,1733534580367,-2410.74,8.219e-05,2]
[344514512,1733534580391,-664.08,8.219e-05,2]
[344514513,1733534580415,-5174.44,8.219e-05,2]
[344514514,1733534580440,-500.0,8.219e-05,2]
[344514515,1733534580465,-500.0,8.219e-05,2]
[344514516,1733534580491,-500.0,8.219e-05,2]
[344514517,1733534580514,-500.0,8.219e-05,2]
[344514518,1733534580541,-1736.23,8.219e-05,2]
[344514519,1733534580564,-500.0,8.219e-05,2]
[344514520,1733534580588,-500.0,8.219e-05,2]
[344514521,1733534580620,-500.0,8.219e-05,2]
[344514522,1733534580643,-500.0,8.219e-05,2]
[344514523,1733534580667,-561.02,8.219e-05,2]
[344514524,1733534580691,-500.0,8.219e-05,2]
[344514525,1733534580715,-500.0,8.219e-05,2]
[344514526,1733534580741,-500.0,8.219e-05,2]
[344514527,1733534580765,-500.0,8.219e-05,2]
[344514528,1733534580789,-1155.21,8.219e-05,2]
[344514529,1733534580812,-500.0,8.219e-05,2]
[344514530,1733534580836,-500.0,8.219e-05,2]
[344514531,1733534580859,-500.0,8.219e-05,2]
[344514532,1733534580883,-1921.14,8.219e-05,2]
[344514533,1733534580906,-1153.75,8.219e-05,2]
[344514534,1733534580928,-500.0,8.219e-05,2]
[344514535,1733534580961,-3625.92,8.219e-05,2]
[344514536,1733534580986,-500.0,8.219e-05,2]
[344514537,1733534581009,-500.0,8.219e-05,2]
[344514538,1733534581033,-500.0,8.219e-05,2]
[344514539,1733534581057,-500.0,8.219e-05,2]
[344514540,1733534581081,-500.0,8.219e-05,2]
[344514541,1733534581106,-500.0,8.219e-05,2]
[344514542,1733534581129,-500.0,8.219e-05,2]
[344514543,1733534581152,-1554.04,8.219e-05,2]
[344514544,1733534581175,-582.93,8.219e-05,2]
[344514545,1733534581197,-185.7908126,8.219e-05,2]
[344514546,1733534581222,-500.0,8.219e-05,2]
[344514547,1733534581251,-500.0,8.219e-05,2]
[344514548,1733534581275,-748.31,8.219e-05,2]
[344514549,1733534581299,-500.0,8.219e-05,2]
[344514550,1733534581322,-500.0,8.219e-05,2]
[344514551,1733534581346,-2553.78,8.219e-05,2]
[344514552,1733534581370,-500.0,8.219e-05,2]
[344514553,1733534581394,-500.0,8.219e-05,2]
[344514554,1733534581419,-1580.76,8.219e-05,2]
[344514555,1733534581444,-1671.64,8.219e-05,2]
[344514556,1733534581468,-500.0,8.219e-05,2]
[344514557,1733534581495,-500.0,8.219e-05,2]
[344514558,1733534581519,-500.0,8.219e-05,2]
[344514559,1733534581544,-500.0,8.219e-05,2]
[344514560,1733534581568,-968.24,8.219e-05,2]
[344514561,1733534581591,-500.0,8.219e-05,2]
[344514562,1733534581614,-2197.28,8.219e-05,2]
[344514563,1733534581637,-500.0,8.219e-05,2]
[344514564,1733534581662,-500.0,8.219e-05,2]
[344514565,1733534581685,-2425.6,8.219e-05,2]
[344514566,1733534581709,-500.0,8.219e-05,2]
[344514567,1733534581732,-1294.74,8.219e-05,2]
[344514568,1733534581756,-433.03736369,8.219e-05,2]
[344514569,1733534581785,-1171.67,8.219e-05,2]
[344514570,1733534581808,-750.83,8.219e-05,2]
[344514571,1733534581832,-9550.42,8.219e-05,2]
[344514572,1733534582125,-500.0,8.219e-05,2]
[344514573,1733534582149,-500.0,8.219e-05,2]
[344514574,1733534582173,-528.44,8.219e-05,2]
[344514575,1733534582197,-620.16,8.219e-05,2]
[344514576,1733534582219,-1340.29,8.219e-05,2]
[344514577,1733534582245,-500.0,8.219e-05,2]
[344514578,1733534582269,-500.0,8.219e-05,2]
[344514579,1733534582291,-834.71,8.219e-05,2]
[344514580,1733534582314,-500.0,8.219e-05,2]
[344514581,1733534582336,-953.56,8.219e-05,2]
[344514582,1733534582358,-1111.02,8.219e-05,2]
[344514583,1733534582381,-500.0,8.219e-05,2]
[344514584,1733534582404,-500.0,8.219e-05,2]
[344514585,1733534582426,-500.0,8.219e-05,2]
[344514586,1733534582451,-38744.73478766,8.219e-05,2]
[344514587,1733534582474,-48918.0,8.219e-05,2]
[344514588,1733534582499,-1000.0,8.219e-05,2]
[344514589,1733534582521,-4869.72,8.219e-05,2]
[344514590,1733534582544,-168.82,8.219e-05,2]
[344514591,1733534582567,-1046.78,8.219e-05,2]
[344514592,1733534582590,-150.0,8.22e-05,2]
[344514593,1733534582614,-150.0,8.22e-05,2]
[344514594,1733534582637,-194.24,8.22e-05,2]
[344514595,1733534582660,-414.44,8.22e-05,2]
[344514596,1733534582683,-728.16,8.22e-05,2]
[344514597,1733534582707,-220.05307507,8.262e-05,2]
[344514598,1733534582731,-220.05307507,8.306e-05,2]
[344514599,1733534582754,-150.0,8.33e-05,2]
[344514600,1733534582777,-150.0,8.33e-05,2]
[344514601,1733534582801,-220.05307507,8.349e-05,2]
[344514602,1733534582824,-6900.9464921,8.355e-05,2]
[344514603,1733534582847,-220.05307507,8.392e-05,2]
[344514604,1733534582870,-220.05307507,8.435e-05,2]
[344514605,1733534582894,-220.05307507,8.479e-05,2]
[344514606,1733534582917,-307.69020266,8.492e-05,2]
[344514607,1733534582940,-182.07954088,8.492e-05,2]
[344514608,1733534582963,-945.21,8.493e-05,2]
[344514609,1733534582986,-154.26213711,8.493e-05,2]
[344514610,1733534583008,-500.0,8.493e-05,2]
[344514611,1733534583035,-504.5570291,8.493e-05,2]
[344514612,1733534583060,-500.0,8.493e-05,2]
[344514613,1733534583084,-416.76330061,8.493e-05,2]
[344514614,1733534583107,-500.0,8.493e-05,2]
[344514615,1733534583131,-500.0,8.493e-05,2]
[344514616,1733534583154,-500.0,8.493e-05,2]
[344514617,1733534583177,-500.0,8.493e-05,2]
[344514618,1733534583200,-1163.74,8.493e-05,2]
[344514619,1733534583223,-500.0,8.493e-05,2]
[344514620,1733534583250,-853.57,8.493e-05,2]
[344514621,1733534583275,-1245.22,8.493e-05,2]
[344514622,1733534583303,-2197.04,8.493e-05,2]
[344514623,1733534583328,-500.0,8.493e-05,2]
[344514624,1733534583351,-1670.09,8.493e-05,2]
[344514625,1733534583374,-500.0,8.493e-05,2]
[344514626,1733534583397,-725.38,8.493e-05,2]
[344514627,1733534583420,-500.0,8.493e-05,2]
[344514628,1733534583445,-1704.98,8.493e-05,2]
[344514629,1733534583468,-500.0,8.493e-05,2]
[344514630,1733534583493,-500.0,8.493e-05,2]
[344514631,1733534583516,-500.0,8.493e-05,2]
[344514632,1733534583540,-678.59,8.493e-05,2]
[344514633,1733534583564,-500.0,8.493e-05,2]
[344514634,1733534583588,-500.0,8.493e-05,2]
[344514635,1733534583613,-503.57,8.493e-05,2]
[344514636,1733534583637,-500.0,8.493e-05,2]
[344514637,1733534583660,-500.0,8.493e-05,2]
[344514638,1733534583684,-1132.25,8.493e-05,2]
[344514639,1733534583707,-1220.76,8.493e-05,2]
[344514640,1733534583732,-1265.94,8.493e-05,2]
[344514641,1733534583758,-500.0,8.493e-05,2]
[344514642,1733534583783,-500.0,8.493e-05,2]
[344514643,1733534583806,-752.05,8.493e-05,2]
[344514644,1733534583829,-500.0,8.493e-05,2]
[344514645,1733534583853,-2267.5,8.493e-05,2]
[344514646,1733534583877,-500.0,8.493e-05,2]
[344514647,1733534583901,-500.0,8.493e-05,2]
[344514648,1733534583924,-1615.99,8.493e-05,2]
[344514649,1733534583948,-500.0,8.493e-05,2]
[344514650,1733534583972,-1420.89,8.493e-05,2]
[344514651,1733534583995,-500.0,8.493e-05,2]
[344514652,1733534584018,-1426.88,8.493e-05,2]
[344514653,1733534584041,-628.29,8.493e-05,2]
[344514654,1733534584068,-500.0,8.493e-05,2]
[344514655,1733534584093,-2472.38,8.493e-05,2]
[344514656,1733534584116,-1911.04,8.493e-05,2]
[344514657,1733534584140,-1987.1,8.493e-05,2]
[344514658,1733534584163,-500.0,8.493e-05,2]
[344514659,1733534584186,-1972.26,8.493e-05,2]
[344514660,1733534584210,-2440.64,8.493e-05,2]
[344514661,1733534584234,-500.0,8.493e-05,2]
[344514662,1733534584258,-500.0,8.493e-05,2]
[344514663,1733534584282,-500.0,8.493e-05,2]
[344514664,1733534584306,-520.75911748,8.493e-05,2]
[344514665,1733534584328,-2962.07,8.493e-05,2]
[344514666,1733534584351,-500.0,8.493e-05,2]
[344514667,1733534584375,-1429.3,8.493e-05,2]
[344514668,1733534584398,-1689.51,8.493e-05,2]
[344514669,1733534584420,-1575.83,8.493e-05,2]
[344514670,1733534584445,-1204.31,8.493e-05,2]
[344514671,1733534584468,-500.0,8.493e-05,2]
[344514672,1733534584493,-1139.66,8.493e-05,2]
[344514673,1733534584517,-500.0,8.493e-05,2]
[344514674,1733534584540,-1037.0,8.493e-05,2]
[344514675,1733534584563,-500.0,8.493e-05,2]
[344514676,1733534584585,-500.0,8.493e-05,2]
[344514677,1733534584608,-500.0,8.493e-05,2]
[344514678,1733534584632,-1418.65,8.493e-05,2]
[344514679,1733534584656,-500.0,8.493e-05,2]
[344514680,1733534584678,-1875.73,8.493e-05,2]
[344514681,1733534584701,-500.0,8.493e-05,2]
[344514682,1733534584725,-500.0,8.493e-05,2]
[344514683,1733534584752,-500.0,8.493e-05,2]
[344514684,1733534584776,-500.0,8.493e-05,2]
[344514685,1733534584800,-873.76,8.493e-05,2]
[344514686,1733534584823,-588.28,8.493e-05,2]
[344514687,1733534584848,-500.0,8.493e-05,2]
[344514688,1733534584872,-1927.52,8.493e-05,2]
[344514689,1733534584894,-689.41,8.493e-05,2]
[344514690,1733534584918,-574.63,8.493e-05,2]
[344514691,1733534584941,-500.0,8.493e-05,2]
[344514692,1733534584964,-1314.25,8.493e-05,2]
[344514693,1733534584989,-500.0,8.493e-05,2]
[344514694,1733534585012,-500.0,8.493e-05,2]
[344514695,1733534585035,-2269.31,8.493e-05,2]
[344514696,1733534585058,-2557.35,8.493e-05,2]
[344514697,1733534585079,-500.0,8.493e-05,2]
[344514698,1733534585103,-1042.33,8.493e-05,2]
[344514699,1733534585127,-175.46,8.493e-05,2]
[344514700,1733534585150,-2288.51,8.493e-05,2]
[344514701,1733534585172,-500.0,8.493e-05,2]
[344514702,1733534585196,-1313.98,8.493e-05,2]
[344514703,1733534585224,-500.0,8.493e-05,2]
[344514704,1733534585251,-620.3093057,8.493e-05,2]
[344514705,1733534585275,-500.0,8.493e-05,2]
[344514706,1733534585299,-500.0,8.493e-05,2]
[344514707,1733534585321,-500.0,8.493e-05,2]
[344514708,1733534585345,-1579.06,8.493e-05,2]
[344514709,1733534585368,-500.0,8.493e-05,2]
[344514710,1733534585391,-639.49,8.493e-05,2]
[344514711,1733534585413,-1489.57,8.493e-05,2]
[344514712,1733534585437,-1973.67,8.493e-05,2]
[344514713,1733534585463,-500.0,8.493e-05,2]
[344514714,1733534585488,-500.0,8.493e-05,2]
[344514715,1733534585511,-500.0,8.493e-05,2]
[344514716,1733534585535,-1336.14,8.493e-05,2]
[344514717,1733534585558,-500.0,8.493e-05,2]
[344514718,1733534585582,-598.85,8.493e-05,2]
[344514719,1733534585605,-1410.28,8.493e-05,2]
[344514720,1733534585629,-500.0,8.493e-05,2]
[344514721,1733534585651,-500.0,8.493e-05,2]
[344514722,1733534585847,-1652.97,8.493e-05,2]
[344514723,1733534585915,-1682.55,8.493e-05,2]
[344514724,1733534585939,-2080.01,8.493e-05,2]
[344514725,1733534585964,-4172.15,8.493e-05,2]
[344514726,1733534585987,-500.0,8.493e-05,2]
[344514727,1733534586010,-500.0,8.493e-05,2]
[344514728,1733534586034,-1426.43,8.493e-05,2]
[344514729,1733534586057,-510.12,8.493e-05,2]
[344514730,1733534586081,-1051.53,8.493e-05,2]
[344514731,1733534586106,-1496.52,8.493e-05,2]
[344514732,1733534586131,-1829.66,8.493e-05,2]
[344514733,1733534586154,-2450.83,8.493e-05,2]
[344514734,1733534586177,-500.0,8.493e-05,2]
[344514735,1733534586199,-500.0,8.493e-05,2]
[344514736,1733534586221,-188.64,8.493e-05,2]
[344514737,1733534586247,-500.0,8.493e-05,2]
[344514738,1733534586273,-500.0,8.493e-05,2]
[344514739,1733534586296,-500.0,8.493e-05,2]
[344514740,1733534586319,-1067.22,8.493e-05,2]
[344514741,1733534586342,-500.0,8.493e-05,2]
[344514742,1733534586365,-3170.17,8.493e-05,2]
[344514743,1733534586389,-500.0,8.493e-05,2]
[344514744,1733534586413,-1635.57,8.493e-05,2]
[344514745,1733534586437,-500.0,8.493e-05,2]
[344514746,1733534586463,-2791.9,8.493e-05,2]
[344514747,1733534586486,-873.81,8.493e-05,2]
[344514748,1733534586509,-500.0,8.493e-05,2]
[344514749,1733534586537,-1306.08,8.493e-05,2]
[344514750,1733534586559,-500.0,8.493e-05,2]
[344514751,1733534586584,-197.38096392,8.493e-05,2]
[344514752,1733534586607,-1375.26,8.493e-05,2]
[344514753,1733534586631,-2435.51,8.493e-05,2]
[344514754,1733534586654,-515.83,8.493e-05,2]
[344514755,1733534586677,-500.0,8.493e-05,2]
[344514756,1733534586701,-1385.01,8.493e-05,2]
[344514757,1733534586724,-1388.39,8.493e-05,2]
[344514758,1733534586747,-500.0,8.493e-05,2]
[344514759,1733534586770,-500.0,8.493e-05,2]
[344514760,1733534586793,-500.0,8.493e-05,2]
[344514761,1733534586816,-1319.34,8.493e-05,2]
[344514762,1733534586839,-760.24,8.493e-05,2]
[344514763,1733534586861,-500.0,8.493e-05,2]
[344514764,1733534586884,-500.0,8.493e-05,2]
[344514765,1733534586908,-500.0,8.493e-05,2]
[344514766,1733534586931,-500.0,8.493e-05,2]
[344514767,1733534586952,-500.0,8.493e-05,2]
[344514768,1733534586974,-500.0,8.493e-05,2]
[344514769,1733534586999,-500.0,8.493e-05,2]
[344514770,1733534587021,-3134.44,8.493e-05,2]
[344514771,1733534587044,-1212.53,8.493e-05,2]
[344514772,1733534587066,-1534.55,8.493e-05,2]
[344514773,1733534587088,-1019.07,8.493e-05,2]
[344514774,1733534587110,-500.0,8.493e-05,2]
[344514775,1733534587132,-1771.79,8.493e-05,2]
[344514776,1733534587155,-600.42747188,8.493e-05,2]
[344514777,1733534587179,-875.16,8.493e-05,2]
[344514778,1733534587200,-652.19,8.493e-05,2]
[344514779,1733534587222,-500.0,8.493e-05,2]
[344514780,1733534587246,-500.0,8.493e-05,2]
[344514781,1733534587268,-507.77,8.493e-05,2]
[344514782,1733534587292,-1672.05,8.493e-05,2]
[344514783,1733534587315,-526.17529984,8.493e-05,2]
[344514784,1733534587338,-500.0,8.493e-05,2]
[344514785,1733534587361,-308.53165405,8.493e-05,2]
[344514786,1733534587384,-2090.14,8.493e-05,2]
[344514787,1733534587408,-500.0,8.493e-05,2]
[344514788,1733534587431,-743.9,8.493e-05,2]
[344514789,1733534587458,-500.0,8.493e-05,2]
[344514790,1733534587480,-500.0,8.493e-05,2]
[344514791,1733534587506,-1293.57,8.493e-05,2]
[344514792,1733534587532,-638.69,8.493e-05,2]
[344514793,1733534587554,-1615.18,8.493e-05,2]
[344514794,1733534587578,-379.77,8.493e-05,2]
[344514795,1733534587603,-500.0,8.493e-05,2]
[344514796,1733534587626,-500.0,8.493e-05,2]
[344514797,1733534587648,-582.08,8.493e-05,2]
[344514798,1733534587671,-500.0,8.493e-05,2]
[344514799,1733534587693,-727.15,8.493e-05,2]
[344514800,1733534587717,-778.61,8.493e-05,2]
[344514801,1733534587743,-2314.43,8.493e-05,2]
[344514802,1733534587765,-500.0,8.493e-05,2]
[344514803,1733534587787,-500.0,8.493e-05,2]
[344514804,1733534587811,-1013.27,8.493e-05,2]
[344514805,1733534587835,-985.91,8.493e-05,2]
[344514806,1733534587860,-500.0,8.493e-05,2]
[344514807,1733534587884,-500.0,8.493e-05,2]
[344514808,1733534587909,-1171.43,8.493e-05,2]
[344514809,1733534587934,-1416.71,8.493e-05,2]
[344514810,1733534587957,-500.0,8.493e-05,2]
[344514811,1733534587981,-500.0,8.493e-05,2]
[344514812,1733534588007,-1631.71,8.493e-05,2]
[344514813,1733534588029,-500.0,8.493e-05,2]
[344514814,1733534588052,-500.0,8.493e-05,2]
[344514815,1733534588075,-500.0,8.493e-05,2]
[344514816,1733534588098,-592.6,8.493e-05,2]
[344514817,1733534588121,-500.0,8.493e-05,2]
[344514818,1733534588144,-1758.52,8.493e-05,2]
[344514819,1733534588167,-500.0,8.493e-05,2]
[344514820,1733534588190,-500.0,8.493e-05,2]
[344514821,1733534588213,-500.0,8.493e-05,2]
[344514822,1733534588237,-1009.89,8.493e-05,2]
[344514823,1733534588266,-629.62431966,8.493e-05,2]
[344514824,1733534588290,-500.0,8.493e-05,2]
[344514825,1733534588315,-500.0,8.493e-05,2]
[344514826,1733534588339,-500.0,8.493e-05,2]
[344514827,1733534588364,-500.0,8.493e-05,2]
[344514828,1733534588388,-500.0,8.493e-05,2]
[344514829,1733534588412,-500.0,8.493e-05,2]
[344514830,1733534588438,-1854.79,8.493e-05,2]
[344514831,1733534588466,-519.53,8.493e-05,2]
[344514832,1733534588496,-158.02565983,8.493e-05,2]
[344514833,1733534588521,-1350.63,8.493e-05,2]
[344514834,1733534588544,-500.0,8.493e-05,2]
[344514835,1733534588568,-2970.04,8.493e-05,2]
[344514836,1733534588592,-500.0,8.493e-05,2]
[344514837,1733534588616,-500.0,8.493e-05,2]
[344514838,1733534588640,-500.0,8.493e-05,2]
[344514839,1733534588664,-942.17,8.493e-05,2]
[344514840,1733534588688,-718.37,8.493e-05,2]
[344514841,1733534588711,-500.0,8.493e-05,2]
[344514842,1733534588735,-1297.4,8.493e-05,2]
[344514843,1733534588762,-500.0,8.493e-05,2]
[344514844,1733534588785,-1656.99,8.493e-05,2]
[344514845,1733534588808,-389.7609801,8.493e-05,2]
[344514846,1733534588831,-500.0,8.493e-05,2]
[344514847,1733534588853,-1113.06,8.493e-05,2]
[344514848,1733534588877,-708.83,8.493e-05,2]
[344514849,1733534588900,-1661.87,8.493e-05,2]
[344514850,1733534588924,-500.0,8.493e-05,2]
[344514851,1733534588948,-2136.73,8.493e-05,2]
[344514852,1733534588971,-500.0,8.493e-05,2]
[344514853,1733534588997,-500.0,8.493e-05,2]
[344514854,1733534589020,-500.0,8.493e-05,2]
[344514855,1733534589045,-1135.85,8.493e-05,2]
[344514856,1733534589068,-1634.73,8.493e-05,2]
[344514857,1733534589090,-560.78,8.493e-05,2]
[344514858,1733534589114,-1287.33,8.493e-05,2]
[344514859,1733534589136,-500.0,8.493e-05,2]
[344514860,1733534589160,-370.83900085,8.493e-05,2]
[344514861,1733534589184,-500.0,8.493e-05,2]
[344514862,1733534589207,-500.0,8.493e-05,2]
[344514863,1733534589232,-1461.49,8.493e-05,2]
[344514864,1733534589257,-500.0,8.493e-05,2]
[344514865,1733534589282,-500.0,8.493e-05,2]
[344514866,1733534589305,-500.0,8.493e-05,2]
[344514867,1733534589329,-500.0,8.493e-05,2]
[344514868,1733534589354,-220.02709251,8.493e-05,2]
[344514869,1733534589380,-1188.56,8.493e-05,2]
[344514870,1733534589405,-2040.68,8.493e-05,2]
[344514871,1733534589647,-1879.78,8.493e-05,2]
[344514872,1733534589673,-645.12,8.493e-05,2]
[344514873,1733534589697,-500.0,8.493e-05,2]
[344514874,1733534589719,-2728.89,8.493e-05,2]
[344514875,1733534589743,-500.0,8.493e-05,2]
[344514876,1733534589766,-703.19,8.493e-05,2]
[344514877,1733534589788,-500.0,8.493e-05,2]
[344514878,1733534589811,-2684.93,8.493e-05,2]
[344514879,1733534589834,-500.0,8.493e-05,2]
[344514880,1733534589857,-500.0,8.493e-05,2]
[344514881,1733534589880,-539.9,8.493e-05,2]
[344514882,1733534589912,-500.0,8.493e-05,2]
[344514883,1733534589935,-1954.72,8.493e-05,2]
[344514884,1733534589958,-1653.8,8.493e-05,2]
[344514885,1733534589981,-1722.05,8.493e-05,2]
[344514886,1733534590007,-500.0,8.493e-05,2]
[344514887,1733534590029,-500.0,8.493e-05,2]
[344514888,1733534590051,-876.53,8.493e-05,2]
[344514889,1733534590074,-500.0,8.493e-05,2]
[344514890,1733534590096,-1772.88,8.493e-05,2]
[344514891,1733534590119,-4449.13,8.493e-05,2]
[344514892,1733534590142,-500.0,8.493e-05,2]
[344514893,1733534590166,-565.91,8.493e-05,2]
[344514894,1733534590189,-500.20910268,8.493e-05,2]
[344514895,1733534590213,-1320.54,8.493e-05,2]
[344514896,1733534590236,-1231.65,8.493e-05,2]
[344514897,1733534590262,-500.0,8.493e-05,2]
[344514898,1733534590285,-533.78,8.493e-05,2]
[344514899,1733534590309,-500.0,8.493e-05,2]
[344514900,1733534590333,-1008.44,8.493e-05,2]
[344514901,1733534590357,-1454.47,8.493e-05,2]
[344514902,1733534590380,-1258.35,8.493e-05,2]
[344514903,1733534590406,-15055.87,8.493e-05,2]
[344514904,1733534590429,-500.0,8.493e-05,2]
[344514905,1733534590455,-500.0,8.493e-05,2]
[344514906,1733534590479,-707.95,8.493e-05,2]
[344514907,1733534590508,-6860.44,8.493e-05,2]
[344514908,1733534590534,-500.0,8.493e-05,2]
[344514909,1733534590557,-1151.79,8.493e-05,2]
[344514910,1733534590582,-2462.88,8.493e-05,2]
[344514911,1733534590606,-1485.49,8.493e-05,2]
[344514912,1733534590630,-10327.5,8.493e-05,2]
[344514913,1733534590655,-6073.25,8.493e-05,2]
[344514914,1733534590679,-500.0,8.493e-05,2]
[344514915,1733534590703,-4445.85,8.493e-05,2]
[344514916,1733534590726,-500.0,8.493e-05,2]
[344514917,1733534590752,-500.0,8.493e-05,2]
[344514918,1733534590776,-500.0,8.493e-05,2]
[344514919,1733534590801,-500.0,8.493e-05,2]
[344514920,1733534590826,-878.28,8.493e-05,2]
[344514921,1733534590850,-500.0,8.493e-05,2]
[344514922,1733534590874,-791.73,8.493e-05,2]
[344514923,1733534590899,-2450.46,8.493e-05,2]
[344514924,1733534590923,-1026.86,8.493e-05,2]
[344514925,1733534590946,-500.0,8.493e-05,2]
[344514926,1733534590970,-1408.03,8.493e-05,2]
[344514927,1733534590993,-1992.9,8.493e-05,2]
[344514928,1733534591030,-1184.68,8.493e-05,2]
[344514929,1733534591060,-555.08,8.493e-05,2]
[344514930,1733534591084,-500.0,8.493e-05,2]
[344514931,1733534591109,-1524.13,8.493e-05,2]
[344514932,1733534591133,-500.0,8.493e-05,2]
[344514933,1733534591158,-676.95,8.493e-05,2]
[344514934,1733534591182,-2762.76,8.493e-05,2]
[344514935,1733534591207,-1555.56,8.493e-05,2]
[344514936,1733534591230,-2989.31,8.493e-05,2]
[344514937,1733534591258,-696.35,8.493e-05,2]
[344514938,1733534591283,-781.7,8.493e-05,2]
[344514939,1733534591306,-500.0,8.493e-05,2]
[344514940,1733534591330,-1512.78,8.493e-05,2]
[344514941,1733534591354,-500.0,8.493e-05,2]
[344514942,1733534591384,-4641.13,8.493e-05,2]
[344514943,1733534591408,-500.0,8.493e-05,2]
[344514944,1733534591431,-500.0,8.493e-05,2]
[344514945,1733534591460,-3892.95,8.493e-05,2]
[344514946,1733534591484,-500.0,8.493e-05,2]
[344514947,1733534591512,-500.0,8.493e-05,2]
[344514948,1733534591538,-568.38,8.493e-05,2]
[344514949,1733534591563,-500.0,8.493e-05,2]
[344514950,1733534591589,-10751.97,8.493e-05,2]
[344514951,1733534591614,-746.04,8.493e-05,2]
[344514952,1733534591639,-500.0,8.493e-05,2]
[344514953,1733534591662,-716.15,8.493e-05,2]
[344514954,1733534591687,-500.0,8.493e-05,2]
[344514955,1733534591710,-500.0,8.493e-05,2]
[344514956,1733534591734,-500.0,8.493e-05,2]
[344514957,1733534591762,-2290.7,8.493e-05,2]
[344514958,1733534591785,-500.0,8.493e-05,2]
[344514959,1733534591811,-500.0,8.493e-05,2]
[344514960,1733534591835,-836.8,8.493e-05,2]
[344514961,1733534591858,-500.0,8.493e-05,2]
[344514962,1733534591883,-6840.25,8.493e-05,2]
[344514963,1733534591912,-2523.76,8.493e-05,2]
[344514964,1733534591935,-500.0,8.493e-05,2]
[344514965,1733534591960,-2349.79,8.493e-05,2]
[344514966,1733534591983,-500.0,8.493e-05,2]
[344514967,1733534592010,-500.0,8.493e-05,2]
[344514968,1733534592034,-500.0,8.493e-05,2]
[344514969,1733534592058,-888.53,8.493e-05,2]
[344514970,1733534592083,-500.0,8.493e-05,2]
[344514971,1733534592107,-503.25260611,8.493e-05,2]